[Event "1st Jeddah Young Masters 2024"]
[Site "Jeddah"]
[Date "2024.01.26"]
[Round "4.3"]
[White "Francisco Guecamburu, Candela Be"]
[Black "Erdogmus, Yagiz Kaan"]
[Result "0-1"]
[ECO "B51"]
[WhiteElo "2295"]
[BlackElo "2524"]
[Annotator "TA"]
[PlyCount "114"]
[EventDate "2024.01.24"]
[EventType "tourn"]
[SourceTitle "playchess.com"]
[Source "ChessBase"]
[SourceQuality "1"]
[TimeControl "5400+30"]

{[%evp 22,114,43,32,44,39,41,38,45,38,46,35,39,34,40,34,41,35,46,31,35,31,57,55,43,26,53,52,49,52,58,31,26,0,15,0,27,0,20,0,32,-47,-60,-151,-135,-132,-136,-122,-140,-147,-138,-191,-108,-211,-210,-208,-211,-214,-179,-432,-431,-432,-488,-508,-503,-487,-485,-518,-522,-521,-518,-455,-223,-454,-463,-539,-541,-523,-537,-725,-730,-723,-693,-705,-730,-756,-753,-952,-931,-909,-886,-29975,-29975,-29991,-29991]} 1. e4 {[%emt 0:00:07]} c5 {[%emt 0:00:19]} 2. Nf3 {[%emt 0:00:07]} d6 {[%emt 0:00:03]} 3. Bb5+ {[%emt 0:00:16]} Nd7 {[%emt 0:00:06]} 4. O-O {[%emt 0:00:36]} Ngf6 {[%emt 0:08:51]} 5. Re1 {[%emt 0:00:29]} a6 {[%emt 0:03:18]} 6. Bf1 {[%emt 0:00:11]} b6 {[%emt 0:07:43]} 7. d4 {[%emt 0:00:27]} cxd4 {[%emt 0:00:37]} 8. Nxd4 {[%emt 0:00:12]} Bb7 {[%emt 0:00:59]} 9. c4 {[%emt 0:00:16]} e6 {[%emt 0:02:01]} 10. Nc3 {[%emt 0:00:30]} Be7 {[%emt 0:00:33] B51: Sicilian: Moscow Variation (3 Bb5+) without 3...Bd7.} 11. f3 {[%emt 0:00:19]} O-O {[%emt 0:00:22]} 12. Be3 {[%emt 0:00:13]} Rc8 {[%emt 0:05:34]} 13. Rc1 {[%emt 0:05:55]} Qc7 {[%emt 0:00:55]} 14. Qd2 {[%emt 0:00:18]} Qb8 {[%emt 0:01:18]} 15. Na4 {[%emt 0:00:54]} Bd8 {[%emt 0:05:28]} 16. b4 {[%emt 0:00:23]} Bc7 {[%emt 0:02:34]} 17. Kh1 {[%emt 0:00:11]} Rfe8 {[%emt 0:12:10]} 18. Nb2 $146 {[%emt 0:36:20]} ({Predecessor:} 18. Bg1 Ne5 19. Nb3 d5 20. exd5 exd5 21. c5 b5 22. Nb6 Rcd8 23. a4 Nc4 24. Qa2 {1-0 Murzin,V (2465)-Guo,A (2358) PNWCC Online blitz JP 19th 2020 (5)}) 18... Ne5 {[%emt 0:15:57]} 19. Bg1 {[%emt 0:10:56]} Rcd8 {[%emt 0:06:06]} 20. Qc2 {[%emt 0:17:08]} Nfd7 {[%emt 0:09:12]} 21. h3 {[%emt 0:08:01]} Nf6 {[%emt 0:01:53]} 22. Bh2 {[%emt 0:01:09]} Ng6 {[%emt 0:03:48]} 23. Qf2 {[%emt 0:04:37]} Nh5 {[%emt 0:07:21]} 24. Nd3 {[%emt 0:05:30]} h6 {[%emt 0:02:06]} 25. a4 {[%emt 0:02:20]} Re7 {[%emt 0:01:06]} 26. g4 {[%emt 0:02:10]} Nf6 {[%emt 0:00:05]} 27. Bg2 {[%emt 0:01:45]} Ree8 {[%emt 0:00:43]} 28. Red1 {[%emt 0:01:22]} Nd7 {[%emt 0:00:35]} 29. h4 {[%emt 0:00:38]} Nge5 {[%emt 0:00:37]} 30. Nf4 {[%emt 0:00:37]} Rc8 {[%emt 0:01:26]} 31. Nh5 {[%emt 0:01:01]} (31. g5 $1 $14) 31... Bd8 $15 {[%emt 0:00:37]} 32. Nb3 {[%emt 0:00:57]} (32. Bf1 $15) 32... g6 {[%emt 0:00:21]} (32... Rxc4 33. Rxc4 Nxc4 34. Qd4 $16) 33. Nf4 {[%emt 0:00:18]} Rxc4 {[%emt 0:00:19]} 34. Rxc4 {[%emt 0:00:17]} Nxc4 {[%emt 0:00:01]} 35. h5 {[%emt 0:00:41]} g5 {[%emt 0:00:10]} 36. Ne2 {[%emt 0:00:12]} (36. Nd3 $17) 36... b5 {[%emt 0:00:45]} (36... Bf6 $19 37. Ned4 Be5) 37. a5 {[%emt 0:00:43]} (37. axb5 $17 axb5 38. Ned4) 37... Nce5 $19 {[%emt 0:00:14]} 38. Ned4 {[%emt 0:00:29]} Bf6 {[%emt 0:00:16]} 39. Qe2 {[%emt 0:00:17]} Bg7 {[%emt 0:00:11]} 40. Nxb5 $2 {[%emt 0:01:02]} (40. Nc1) 40... axb5 $19 {[%emt 0:00:03]} 41. Qxb5 {[%emt 0:00:05]} Bc6 {[%emt 0:00:40]} 42. Qxb8 {[%emt 0:00:33]} Rxb8 {[%emt 0:00:01]} 43. Nd4 {[%emt 0:00:55]} Ba4 {[%emt 0:00:17]} ({But not} 43... Rxb4 44. Nxc6 Nxc6 45. a6) 44. Rb1 {[%emt 0:00:11]} Nc4 {[%emt 0:00:19]} 45. Bg1 {[%emt 0:00:43]} Nxa5 {[%emt 0:00:10]} 46. Bf1 {[%emt 0:00:34]} Nc5 {[%emt 0:03:07]} (46... Bxd4 $142 47. Bxd4 Nc6) 47. b5 $2 {[%emt 0:00:32]} (47. Nb5 {was forced.} Nxe4 (47... Rxb5 48. Bxb5 Bxb5 49. bxa5 $11) 48. fxe4) 47... Be5 {[%emt 0:01:19]} 48. Kg2 {[%emt 0:00:22]} Bxd4 {[%emt 0:00:33]} 49. Bxd4 {[%emt 0:00:01]} Nab3 {[%emt 0:00:09]} 50. Bc3 {[%emt 0:00:40]} Bxb5 {[%emt 0:00:06]} 51. Bxb5 {[%emt 0:00:11]} Rxb5 {[%emt 0:00:02]} 52. Rd1 {[%emt 0:00:02]} Rb6 {[%emt 0:00:18]} 53. Bf6 {[%emt 0:00:27]} e5 {[%emt 0:00:58]} 54. Be7 {[%emt 0:00:52]} Nd4 {[%emt 0:01:00]} 55. Ra1 {[%emt 0:00:07]} Kg7 {[%emt 0:00:29]} 56. Ra8 {[%emt 0:00:11]} Rb2+ {[%emt 0:01:03]} 57. Kh3 {[%emt 0:01:04]} Nce6 {[%emt 0:00:40]} 0-1

[Event "1st Jeddah Young Masters 2024"]
[Site "Jeddah"]
[Date "2024.01.26"]
[Round "4.4"]
[White "Klimkowski, Jan"]
[Black "Sadhwani, Raunak"]
[Result "1/2-1/2"]
[ECO "C02"]
[WhiteElo "2531"]
[BlackElo "2654"]
[Annotator "TA"]
[PlyCount "55"]
[EventDate "2024.01.24"]
[EventType "tourn"]
[SourceTitle "playchess.com"]
[Source "ChessBase"]
[SourceQuality "1"]
[TimeControl "5400+30"]

{[%evp 17,55,4,10,2,10,12,10,12,12,0,0,0,0,0,-2,-2,-4,-18,-15,-11,-25,-9,-24,-13,-23,-25,-10,-23,-13,-34,-25,-14,0,-7,0,0,0,0,0,0]} 1. e4 {[%emt 0:00:07]} e6 {[%emt 0:00:10]} 2. d4 {[%emt 0:00:09]} d5 {[%emt 0:00:06]} 3. e5 {[%emt 0:00:08]} c5 {[%emt 0:00:04]} 4. c3 {[%emt 0:00:12]} Nc6 {[%emt 0:00:05]} 5. Nf3 {[%emt 0:00:14]} Bd7 {[%emt 0:00:04]} 6. Be2 {[%emt 0:01:13]} Nge7 {[%emt 0:00:11]} 7. Na3 {[%emt 0:00:48]} cxd4 {[%emt 0:00:27]} 8. cxd4 {[%emt 0:00:09]} Nf5 {[%emt 0:00:04]} 9. Nc2 {[%emt 0:00:48]} Be7 {[%emt 0:00:17]} 10. O-O {[%emt 0:00:36]} O-O {[%emt 0:00:05]} 11. Bd3 {[%emt 0:04:27]} f6 {[%emt 0:00:12]} 12. Bxf5 {[%emt 0:03:41]} exf5 {[%emt 0:00:05]} 13. Bf4 {[%emt 0:04:51]} g5 {[%emt 0:06:51]} 14. exf6 {[%emt 0:06:26]} Bxf6 {[%emt 0:00:11]} 15. Bd6 {[%emt 0:02:50]} Re8 {[%emt 0:00:15]} 16. Nb4 {[%emt 0:03:15]} g4 {[%emt 0:07:44]} 17. Ne5 {[%emt 0:13:09]} (17. Nxd5 $5 Bg7 (17... gxf3 18. Bc7 $14) 18. Bc7 $11) 17... Be6 {[%emt 0:00:10]} 18. Bc5 {[%emt 0:03:44]} Nxe5 {[%emt 0:01:59]} 19. dxe5 {[%emt 0:00:04]} Bxe5 {[%emt 0:00:07][%cal Od5d4]} 20. Bd4 {[%emt 0:07:19]} Qd6 {[%emt 0:00:27]} 21. Bxe5 {[%emt 0:00:12]} Qxe5 {[%emt 0:00:05]} 22. Qd2 {[%emt 0:02:10] White is weak on the light squares} d4 {[%emt 0:01:55]} 23. Rad1 {[%emt 0:04:30][%cal Ob4d3]} Rad8 {[%emt 0:02:23]} 24. b3 {[%emt 0:00:55]} Bd7 {[%emt 0:13:15] The position is equal.} 25. Rfe1 {[%emt 0:09:20]} Qg7 {[%emt 0:01:58]} 26. Rxe8+ {[%emt 0:02:01]} Bxe8 {[%emt 0:00:17]} 27. Qf4 {[%emt 0:03:00]} Qf6 {[%emt 0:09:51]} 28. Nc2 {[%emt 0:03:01] Not much happened in this game.   Weighted Error Value: White=0.04 (flawless) /Black=0.03 (flawless) .  OK:         	White=10    	Black=7} 1/2-1/2

[Event "1st Jeddah Young Masters 2024"]
[Site "Jeddah"]
[Date "2024.01.26"]
[Round "4.5"]
[White "Seemann, Jakub"]
[Black "Rey Martinez, Jaime"]
[Result "0-1"]
[ECO "A23"]
[WhiteElo "2439"]
[BlackElo "2342"]
[Annotator "RC"]
[PlyCount "104"]
[EventDate "2024.01.24"]
[EventType "tourn"]
[SourceTitle "playchess.com"]
[Source "ChessBase"]
[SourceQuality "1"]
[TimeControl "5400+30"]

1. c4 {[%emt 0:00:04]} e5 {[%emt 0:00:51]} 2. g3 {[%emt 0:01:02]} Nf6 {[%emt 0:01:05]} 3. Bg2 {[%emt 0:00:06]} Bc5 {[%emt 0:01:55]} 4. Nc3 {[%emt 0:01:12]} c6 {[%emt 0:03:16]} 5. Qc2 {[%emt 0:12:20]} O-O {[%emt 0:01:31]} 6. Nf3 {[%emt 0:10:35]} Re8 {[%emt 0:01:08]} 7. O-O {[%emt 0:00:29]} Bf8 {[%emt 0:06:52]} 8. e4 {[%emt 0:13:37]} c5 {[%emt 0:07:32]} 9. d3 {[%emt 0:00:27]} Nc6 {[%emt 0:04:57]} 10. h3 {[%emt 0:08:13]} d6 {[%emt 0:03:41]} 11. Ne1 {[%emt 0:02:52]} Nh5 {[%emt 0:09:54]} 12. Nd5 {[%emt 0:06:09]} Be6 {[%emt 0:03:17]} 13. Qd1 {[%emt 0:00:43]} g6 {[%emt 0:03:20]} 14. Nc2 {[%emt 0:04:12]} Bg7 {[%emt 0:04:32]} 15. Rb1 {[%emt 0:10:05]} a5 {[%emt 0:15:14]} 16. Nce3 {[%emt 0:02:39]} Nd4 {[%emt 0:00:59]} 17. Kh2 {[%emt 0:02:45]} Kh8 {[%emt 0:05:55]} 18. Bd2 {[%emt 0:02:07]} b5 {[%emt 0:02:10]} 19. cxb5 {[%emt 0:00:14]} Nxb5 {[%emt 0:00:24]} 20. f4 {[%emt 0:02:31]} exf4 {[%emt 0:00:44]} 21. gxf4 {[%emt 0:00:05]} Nc7 {[%emt 0:06:02]} 22. Nc3 {[%emt 0:00:41]} Bc8 {[%emt 0:03:31]} 23. Nc4 {[%emt 0:01:45]} Ba6 {[%emt 0:03:01]} 24. Bf3 {[%emt 0:00:38]} Bxc4 {[%emt 0:01:40]} 25. dxc4 {[%emt 0:00:07]} Nf6 {[%emt 0:00:29]} 26. e5 {[%emt 0:00:48]} dxe5 {[%emt 0:00:56]} 27. Bxa8 {[%emt 0:00:07]} Qxa8 {[%emt 0:00:04]} 28. f5 {[%emt 0:03:07]} gxf5 {[%emt 0:01:54]} 29. Rxf5 {[%emt 0:00:08]} Ne6 {[%emt 0:00:10]} 30. Qf1 {[%emt 0:01:41]} Qd8 {[%emt 0:01:14]} 31. Rd1 {[%emt 0:01:06]} Qe7 {[%emt 0:01:43]} 32. Re1 {[%emt 0:00:29]} Qd6 {[%emt 0:00:32]} 33. Rxf6 {[%emt 0:00:18]} Qxd2+ {[%emt 0:00:04]} 34. Rf2 {[%emt 0:00:05]} Qh6 {[%emt 0:00:48]} 35. Rxf7 {[%emt 0:06:23]} Ng5 {[%emt 0:00:08]} 36. Rf5 {[%emt 0:00:14]} e4 {[%emt 0:00:41]} 37. Re3 {[%emt 0:06:56]} Qd6+ {[%emt 0:04:57]} 38. Kh1 {[%emt 0:00:41]} Bd4 {[%emt 0:00:22]} 39. Rxg5 {[%emt 0:01:26]} Bxe3 {[%emt 0:00:04]} 40. Qf7 {[%emt 0:00:26]} Bxg5 {[%emt 0:00:48]} 41. Qxe8+ {[%emt 0:00:05]} Kg7 {[%emt 0:00:01]} 42. Qxe4 {[%emt 0:00:09]} Bf6 {[%emt 0:01:00]} 43. Qg4+ {[%emt 0:00:41]} Kh8 {[%emt 0:01:06]} 44. Qc8+ {[%emt 0:01:01]} Kg7 {[%emt 0:00:46]} 45. Qg4+ {[%emt 0:00:24]} Kh8 {[%emt 0:00:01]} 46. Ne4 {[%emt 0:00:19]} Qc6 {[%emt 0:00:52]} 47. Qg2 {[%emt 0:00:56]} Bd4 {[%emt 0:00:24]} 48. b3 {[%emt 0:00:05]} Qe6 {[%emt 0:01:07]} 49. Qg4 {[%emt 0:00:56]} Qf7 {[%emt 0:00:29]} 50. Kg2 {[%emt 0:00:09]} a4 {[%emt 0:00:21]} 51. Nd2 {[%emt 0:01:10]} Qf2+ {[%emt 0:00:07]} 52. Kh1 {[%emt 0:00:04]} Qe1+ {[%emt 0:01:51]} 0-1

[Event "1st Jeddah Young Masters 2024"]
[Site "Jeddah"]
[Date "2024.01.27"]
[Round "5.1"]
[White "Rey Martinez, Jaime"]
[Black "Murzin, Volodar"]
[Result "0-1"]
[ECO "B90"]
[WhiteElo "2342"]
[BlackElo "2635"]
[Annotator "TA"]
[PlyCount "30"]
[EventDate "2024.01.24"]
[EventType "tourn"]
[SourceTitle "playchess.com"]
[Source "ChessBase"]
[SourceQuality "1"]
[TimeControl "5400+30"]

{[%evp 10,30,20,-15,12,19,26,8,43,-18,0,-20,0,-58,-19,-15,0,0,0,-47,-48,-29,-12]} 1. e4 {[%emt 0:00:06]} c5 {[%emt 0:00:05]} 2. Nf3 {[%emt 0:00:21]} d6 {[%emt 0:00:07]} 3. d4 {[%emt 0:00:19]} cxd4 {[%emt 0:00:05]} 4. Nxd4 {[%emt 0:00:05]} Nf6 {[%emt 0:00:06]} 5. Nc3 {[%emt 0:00:13]} a6 {[%emt 0:00:05]} 6. Rg1 {[%emt 0:00:34]} h5 {[%emt 0:02:40]} 7. Bg5 {[%emt 0:03:40]} Nbd7 {[%emt 0:00:12]} 8. Qd2 {[%emt 0:02:24]} e6 {[%emt 0:06:45] The position is equal.} 9. h4 {[%emt 0:05:42]} (9. g3 $14) 9... b5 $11 {[%emt 0:08:10]} 10. f3 {[%emt 0:13:21]} Bb7 {[%emt 0:05:26]} 11. Bd3 {[%emt 0:07:09]} (11. O-O-O $11) 11... Be7 {[%emt 0:04:05]} 12. O-O-O {[%emt 0:09:33]} Rc8 {[%emt 0:05:09]} 13. Kb1 {[%emt 0:01:32]} Ne5 {[%emt 0:06:00]} 14. f4 {[%emt 0:08:42]} (14. Be2 $11) 14... Nxd3 $15 {[%emt 0:23:22]} 15. cxd3 {[%emt 0:02:28]} Ng4 {[%emt 0:00:17][%mdl 32768] Weighted Error Value: White=0.31/Black=0.12 (very precise) .  Mistake:       	White=3     	---        Inaccurate:     	---       	Black=2      OK:         	White=2     	Black=4     . Loss on time!?} 0-1

[Event "1st Jeddah Young Masters 2024"]
[Site "Jeddah"]
[Date "2024.01.27"]
[Round "5.2"]
[White "Sadhwani, Raunak"]
[Black "Seemann, Jakub"]
[Result "1/2-1/2"]
[ECO "B51"]
[WhiteElo "2654"]
[BlackElo "2439"]
[Annotator "TA"]
[PlyCount "37"]
[EventDate "2024.01.24"]
[EventType "tourn"]
[SourceTitle "playchess.com"]
[Source "ChessBase"]
[SourceQuality "1"]
[TimeControl "5400+30"]

{[%evp 9,37,4,0,23,38,23,30,31,44,40,52,37,47,51,42,22,47,42,39,16,23,27,24,0,0,0,0,0,0,0]} 1. e4 {[%emt 0:00:03]} c5 {[%emt 0:00:04]} 2. Nf3 {[%emt 0:00:04]} d6 {[%emt 0:00:04]} 3. Bb5+ {[%emt 0:00:05]} Nd7 {[%emt 0:00:05]} 4. O-O {[%emt 0:00:09]} a6 {[%emt 0:00:08]} 5. Be2 {[%emt 0:00:05]} Ngf6 {[%emt 0:00:45]} 6. d3 {[%emt 0:00:05]} g6 {[%emt 0:01:00]} 7. c4 {[%emt 0:00:12]} Bg7 {[%emt 0:05:55]} 8. Nc3 {[%emt 0:00:21] White has an edge.} b6 {[%emt 0:06:14]} 9. d4 {[%emt 0:07:15]} cxd4 {[%emt 0:00:16]} 10. Nxd4 {[%emt 0:00:06]} Bb7 {[%emt 0:00:26]} 11. f3 {[%emt 0:00:17]} Rc8 {[%emt 0:01:58]} 12. Be3 {[%emt 0:09:09]} O-O {[%emt 0:03:30]} 13. Qd2 {[%emt 0:01:05]} e6 {[%emt 0:04:15]} 14. Rfd1 {[%emt 0:00:29]} d5 {[%emt 0:20:07]} 15. cxd5 {[%emt 0:01:18]} exd5 {[%emt 0:00:10]} 16. Nxd5 {[%emt 0:09:25]} Nxd5 {[%emt 0:00:22] The position is equal.} 17. exd5 {[%emt 0:00:03][%cal Od4c6]} Nf6 {[%emt 0:04:06]} 18. Nc6 {[%emt 0:02:11]} Qe8 {[%emt 0:00:22][%cal Of6d5] [#] White must now prevent ...Nxd5!} 19. Bd4 {[%emt 0:03:16] Weighted Error Value: White=0.07 (flawless) /Black=0.03 (flawless) .  OK:         	White=8     	Black=8} ({Don't play} 19. Bxb6 Nxd5 20. Na5 Nxb6 $15) 1/2-1/2

[Event "1st Jeddah Young Masters 2024"]
[Site "Jeddah"]
[Date "2024.01.27"]
[Round "5.3"]
[White "Erdogmus, Yagiz Kaan"]
[Black "Klimkowski, Jan"]
[Result "1/2-1/2"]
[ECO "E20"]
[WhiteElo "2524"]
[BlackElo "2531"]
[Annotator "RC"]
[PlyCount "88"]
[EventDate "2024.01.24"]
[EventType "tourn"]
[SourceTitle "playchess.com"]
[Source "ChessBase"]
[SourceQuality "1"]
[TimeControl "5400+30"]

1. d4 {[%emt 0:00:06]} Nf6 {[%emt 0:00:08]} 2. c4 {[%emt 0:00:05]} e6 {[%emt 0:00:03]} 3. Nc3 {[%emt 0:00:06]} Bb4 {[%emt 0:00:08]} 4. g3 {[%emt 0:00:04]} d5 {[%emt 0:01:00]} 5. Bg2 {[%emt 0:00:10]} O-O {[%emt 0:00:35]} 6. Nf3 {[%emt 0:00:27]} dxc4 {[%emt 0:00:43]} 7. O-O {[%emt 0:00:32]} Nc6 {[%emt 0:00:35]} 8. Re1 {[%emt 0:01:16]} Rb8 {[%emt 0:09:48]} 9. a3 {[%emt 0:00:40]} Be7 {[%emt 0:01:12]} 10. Qa4 {[%emt 0:01:49]} Nxd4 {[%emt 0:15:49]} 11. Nxd4 {[%emt 0:00:24]} Qxd4 {[%emt 0:00:05]} 12. Be3 {[%emt 0:04:57]} Qd8 {[%emt 0:00:55]} 13. Qxa7 {[%emt 0:38:02]} Bd7 {[%emt 0:02:19]} 14. Bxb7 {[%emt 0:11:15]} Ng4 {[%emt 0:04:20]} 15. Bc1 {[%emt 0:11:51]} c6 {[%emt 0:13:06]} 16. Rd1 {[%emt 0:11:27]} Nxf2 {[%emt 0:01:34]} 17. Kxf2 {[%emt 0:00:41]} Qc7 {[%emt 0:00:08]} 18. Qd4 {[%emt 0:00:41]} Rxb7 {[%emt 0:00:12]} 19. Bf4 {[%emt 0:03:02]} Qa5 {[%emt 0:04:17]} 20. Qxc4 {[%emt 0:01:11]} Qh5 {[%emt 0:06:25]} 21. Kg1 {[%emt 0:02:28]} e5 {[%emt 0:02:01]} 22. Be3 {[%emt 0:03:57]} Be6 {[%emt 0:02:26]} 23. Qxc6 {[%emt 0:00:54]} Rxb2 {[%emt 0:00:06]} 24. Bc5 {[%emt 0:02:03]} Qg5 {[%emt 0:03:19]} 25. Qc7 {[%emt 0:01:13]} Bxc5+ {[%emt 0:01:57]} 26. Qxc5 {[%emt 0:00:03]} h5 {[%emt 0:01:05]} 27. Rab1 {[%emt 0:03:03]} Rxb1 {[%emt 0:10:27]} 28. Rxb1 {[%emt 0:00:21]} h4 {[%emt 0:04:49]} 29. Ne4 {[%emt 0:00:54]} Qf5 {[%emt 0:01:20]} 30. Qe3 {[%emt 0:00:46]} hxg3 {[%emt 0:00:13]} 31. hxg3 {[%emt 0:00:06]} Bd5 {[%emt 0:00:33]} 32. Nc3 {[%emt 0:00:35]} Ba8 {[%emt 0:00:14]} 33. Rf1 {[%emt 0:01:06]} Qh5 {[%emt 0:01:30]} 34. Kf2 {[%emt 0:00:38]} Rc8 {[%emt 0:03:50]} 35. Rc1 {[%emt 0:00:32]} Rd8 {[%emt 0:08:03]} 36. Rb1 {[%emt 0:00:28]} Qh2+ {[%emt 0:00:21]} 37. Ke1 {[%emt 0:00:04]} Qh1+ {[%emt 0:00:04]} 38. Kf2 {[%emt 0:00:02]} Qh2+ {[%emt 0:00:06]} 39. Ke1 {[%emt 0:00:05]} Rd6 {[%emt 0:01:57]} 40. Qf2 {[%emt 0:00:24]} Qh5 {[%emt 0:02:47]} 41. Rc1 {[%emt 0:02:32]} Rd8 42. Rd1 {[%emt 0:00:30]} Kf8 43. Qe3 Kg8 {[%emt 0:01:30]} 44. Kf2 {[%emt 0:01:00]} Qh1 1/2-1/2

[Event "1st Jeddah Young Masters 2024"]
[Site "Jeddah"]
[Date "2024.01.27"]
[Round "5.4"]
[White "Woodward, Andy"]
[Black "Francisco Guecamburu, Candela Be"]
[Result "1-0"]
[ECO "E18"]
[WhiteElo "2501"]
[BlackElo "2295"]
[Annotator "RC"]
[PlyCount "63"]
[EventDate "2024.01.24"]
[EventType "tourn"]
[SourceTitle "playchess.com"]
[Source "ChessBase"]
[SourceQuality "1"]
[TimeControl "5400+30"]

1. d4 {[%emt 0:00:05]} Nf6 {[%emt 0:00:09]} 2. Nf3 {[%emt 0:00:25]} e6 {[%emt 0:00:27]} 3. c4 {[%emt 0:00:15]} b6 {[%emt 0:00:39]} 4. g3 {[%emt 0:00:26]} Bb7 {[%emt 0:00:12]} 5. Bg2 {[%emt 0:00:21]} Be7 {[%emt 0:00:17]} 6. O-O {[%emt 0:01:23]} O-O {[%emt 0:00:34]} 7. Nc3 {[%emt 0:00:07]} Ne4 {[%emt 0:01:03]} 8. Bd2 {[%emt 0:00:22]} Bf6 {[%emt 0:02:13]} 9. Qc2 {[%emt 0:21:36]} Nxd2 {[%emt 0:14:25]} 10. Qxd2 {[%emt 0:00:36]} c5 {[%emt 0:04:18]} 11. Rfd1 {[%emt 0:09:38]} cxd4 {[%emt 0:07:33]} 12. Nxd4 {[%emt 0:01:21]} Bxg2 {[%emt 0:00:18]} 13. Kxg2 {[%emt 0:00:11]} Qc7 {[%emt 0:03:43]} 14. b3 {[%emt 0:10:21]} a6 {[%emt 0:04:43]} 15. Rac1 {[%emt 0:07:17]} Rd8 {[%emt 0:18:44]} 16. Nf3 {[%emt 0:07:30]} Nc6 {[%emt 0:12:18]} 17. Qe3 {[%emt 0:07:26]} Be7 {[%emt 0:02:38]} 18. Rc2 {[%emt 0:04:58]} Qb7 {[%emt 0:05:00]} 19. Rcd2 {[%emt 0:02:47]} Bc5 {[%emt 0:04:04]} 20. Qf4 {[%emt 0:02:35]} Bb4 {[%emt 0:03:45]} 21. Rd3 {[%emt 0:01:09]} b5 {[%emt 0:01:46]} 22. Ne4 {[%emt 0:00:40]} bxc4 {[%emt 0:00:13]} 23. bxc4 {[%emt 0:00:12]} f5 {[%emt 0:03:41]} 24. Nd6 {[%emt 0:00:56]} Bxd6 {[%emt 0:02:24]} 25. Rxd6 {[%emt 0:00:02]} Rac8 {[%emt 0:00:22]} 26. c5 {[%emt 0:02:09]} h6 {[%emt 0:03:47]} 27. h4 {[%emt 0:02:04]} Qb5 {[%emt 0:00:17]} 28. Qe3 {[%emt 0:01:51]} Ne7 {[%emt 0:02:15]} 29. Rxd7 {[%emt 0:00:14]} Rxd7 {[%emt 0:02:08]} 30. Qxe6+ {[%emt 0:00:03]} Kh7 {[%emt 0:00:59]} 31. Rxd7 {[%emt 0:00:05]} Ng6 {[%emt 0:00:29]} 32. Rd6 {[%emt 0:00:05]} 1-0